Workbook

Sheet 湖北站资源（PC端）
A1: 2016Q1-2017Q4湖北站刊例
A3: 页面 | B3: 产品类型 | C3: 产品名称 | D3: 是否可富媒体售卖 | E3: 售卖单位 | F3: 轮播数 | G3: 刊例价 | H3: 售卖配送属性 | I3: 宽度 | J3: 高度 | K3: 规格 | L3: 备注
A4: 湖北站首页 | B4: 通栏 | C4: 湖北站首页顶部640*90通栏 | D4: 不可富媒体售卖 | E4: 天 | F4: 1 | G4: 14000 | H4: 工作日不可配送 | I4: 640 | J4: 90 | K4: <20k
B5: 翻牌广告 | C5: 湖北站首页左侧两轮播160*90翻牌广告 | D5: 不可富媒体售卖 | E5: 天 | F5: 2 | G5: 3000 | H5: 工作日不可配送 | I5: 160 | J5: 90 | K5: <10k | L5: 文件格式必须为：jpg
B6: 翻牌广告 | C6: 湖北站首页右侧两轮播160*90翻牌广告 | D6: 不可富媒体售卖 | E6: 天 | F6: 2 | G6: 3000 | H6: 工作日不可配送 | I6: 160 | J6: 90 | K6: <10k | L6: 文件格式必须为：jpg
B7: 通栏 | C7: 湖北站首页扩展顶部1000*45通栏 扩展后1000*180 | D7: 不可富媒体售卖 | E7: 天 | F7: 1 | G7: 14000 | H7: 全时段不可配送 | I7: 1000 | J7: 45 | K7: <20k | L7: 扩展后广告尺寸：950*180<30K
B8: 跨栏广告 | C8: 湖北站首页1000*90跨栏广告 | D8: 不可富媒体售卖 | E8: 天 | F8: 1 | G8: 9000 | H8: 工作日不可配送 | I8: 1000 | J8: 90 | K8: <30k | L8: 左右两侧竖边25*300<30K
B9: 通栏 | C9: 湖北站首页导航条下1000*90通栏 | D9: 不可富媒体售卖 | E9: 天 | F9: 1 | G9: 10000 | H9: 工作日不可配送 | I9: 1000 | J9: 90 | K9: <20k
B10: 浮动图标 | C10: 湖北站首页100*100浮动图标00 | D10: 不可富媒体售卖 | E10: 天 | F10: 1 | G10: 4000 | H10: 工作日不可配送 | I10: 100 | J10: 100 | K10: <10k
B11: 浮动图标 | C11: 湖北站首页100*100浮动图标01 | D11: 不可富媒体售卖 | E11: 天 | F11: 1 | G11: 4000 | H11: 工作日不可配送 | I11: 100 | J11: 100 | K11: <10k
B12: 通栏 | C12: 湖北站首页1000*90通栏01 | D12: 不可富媒体售卖 | E12: 天 | F12: 1 | G12: 7200 | H12: 工作日不可配送 | I12: 1000 | J12: 90 | K12: <30k
B13: 通栏 | C13: 湖北站首页1000*90通栏02 | D13: 不可富媒体售卖 | E13: 天 | F13: 1 | G13: 5800 | H13: 全时段可配送 | I13: 1000 | J13: 90 | K13: <30k
B14: 通栏 | C14: 湖北站首页1000*90通栏03 | D14: 不可富媒体售卖 | E14: 天 | F14: 1 | G14: 4700 | H14: 全时段可配送 | I14: 1000 | J14: 90 | K14: <30k
B15: 通栏 | C15: 湖北站首页1000*90通栏04 | D15: 不可富媒体售卖 | E15: 天 | F15: 1 | G15: 3800 | H15: 全时段可配送 | I15: 1000 | J15: 90 | K15: <30k
B16: 矩形广告 | C16: 湖北站首页右侧290*250矩形广告01 | D16: 不可富媒体售卖 | E16: 天 | F16: 1 | G16: 9600 | H16: 工作日不可配送 | I16: 290 | J16: 250 | K16: <30k
B17: 矩形广告 | C17: 湖北站首页右侧290*250矩形广告02 | D17: 不可富媒体售卖 | E17: 天 | F17: 1 | G17: 6000 | H17: 工作日不可配送 | I17: 290 | J17: 250 | K17: <30k
B18: 文字链 | C18: 湖北站首页要闻区文字链01 | D18: 不可富媒体售卖 | E18: 天 | F18: 1 | G18: 1600 | H18: 工作日不可配送 | K18: <10字
B19: 文字链 | C19: 湖北站首页要闻区文字链01（套红） | D19: 不可富媒体售卖 | E19: 天 | F19: 1 | G19: 4800 | H19: 工作日不可配送 | K19: <10字
B20: 文字链 | C20: 湖北站首页要闻区文字链02 | D20: 不可富媒体售卖 | E20: 天 | F20: 1 | G20: 1600 | H20: 工作日不可配送 | K20: <10字
B21: 文字链 | C21: 湖北站首页要闻区文字链02（套红） | D21: 不可富媒体售卖 | E21: 天 | F21: 1 | G21: 4800 | H21: 工作日不可配送 | K21: <10字
B22: 流媒体 | C22: 湖北站首页1000*300流媒体 | D22: 可富媒体售卖 | E22: 天 | F22: 1 | G22: 19000 | H22: 全时段可配送 | I22: 1000 | J22: 300 | K22: <75k | L22: 首页流媒体与首页动态全屏互斥
B23: 流媒体 | C23: 湖北站首页1000*300流媒体(小时) | D23: 可富媒体售卖 | E23: 小时 | F23: 1 | G23: 5000 | H23: 全时段可配送 | I23: 1000 | J23: 300 | K23: <75k | L23: 1、刊例价格为每小时的价格； 2、每日9:00-12:59不可售卖 3、首页流媒体与首页动态全屏互斥
B24: 背投 | C24: 湖北站首页750*450背投 | D24: 不可富媒体售卖 | E24: 天 | F24: 1 | G24: 12000 | H24: 全时段可配送 | I24: 750 | J24: 450 | K24: <35k
B25: 动态全屏 | C25: 湖北站首页1000*450动态全屏(小时) | D25: 不可富媒体售卖 | E25: 天 | F25: 1 | G25: 2400 | H25: 全时段可配送 | I25: 1000 | J25: 450 | K25: ≤75k | L25: 1、刊例价格为每小时的价格； 2、每日9:00-12:59不可售卖 3、首页流媒体与首页动态全屏互斥
B26: 视窗 | C26: 湖北站首页300*250视窗 | D26: 可富媒体售卖 | E26: 天 | F26: 1 | G26: 8000 | H26: 全时段不可配送 | I26: 300 | J26: 250 | K26: <500k | L26: 1、格式规范必须为:flv 创意类型:<500K 2、15-30秒视频素材，在流媒体、对联、跨栏、前弹、背投之后出现
B27: 背景广告 | C27: 湖北站首页背景广告 | D27: 不可富媒体售卖 | E27: 天 | F27: 1 | G27: 22000 | H27: 全时段可配送 | I27: 1700 | J27: 508 | K27: <200k | L27: 1、背景广告顶部可投放1000*75<30K动态通栏 2、首页背景广告与首页流媒体、首页动态全屏互斥
B28: 焦点图 | C28: 湖北站首页焦点图 | D28: 不可富媒体售卖 | E28: 天 | F28: 1 | G28: 8000 | H28: 全时段不可配送 | I28: 335 | J28: 210 | L28: 需总部运营审批素材
A29: 湖北站新闻首页 | B29: 通栏 | C29: 湖北站新闻首页顶部640*90通栏 | D29: 不可富媒体售卖 | E29: 天 | F29: 1 | G29: 5500 | H29: 工作日不可配送 | I29: 640 | J29: 90 | K29: <30K
B30: 翻牌广告 | C30: 湖北站新闻首页左侧两轮播160*90翻牌广告 | D30: 不可富媒体售卖 | E30: 天 | F30: 2 | G30: 1200 | H30: 工作日不可配送 | I30: 160 | J30: 90 | K30: <10K | L30: 文件格式必须为：jpg
B31: 翻牌广告 | C31: 湖北站新闻首页右侧两轮播160*90翻牌广告 | D31: 不可富媒体售卖 | E31: 天 | F31: 2 | G31: 1200 | H31: 工作日不可配送 | I31: 160 | J31: 90 | K31: <10K | L31: 文件格式必须为：jpg
B32: 矩形广告 | C32: 湖北站新闻首页通栏01下290*250矩形广告01 | D32: 不可富媒体售卖 | E32: 天 | F32: 1 | G32: 3250 | H32: 工作日不可配送 | I32: 290 | J32: 250 | K32: <20K
B33: 矩形广告 | C33: 湖北站新闻首页通栏01右侧290*250矩形广告02 | D33: 不可富媒体售卖 | E33: 天 | F33: 1 | G33: 1400 | H33: 工作日不可配送 | I33: 290 | J33: 250 | K33: <20K
B34: 通栏 | C34: 湖北站新闻首页1000*90通栏01 | D34: 不可富媒体售卖 | E34: 天 | F34: 1 | G34: 2500 | H34: 工作日不可配送 | I34: 1000 | J34: 90 | K34: <30K
B35: 通栏 | C35: 湖北站新闻首页670*90通栏02 | D35: 不可富媒体售卖 | E35: 天 | F35: 1 | G35: 1400 | H35: 全时段可配送 | I35: 670 | J35: 90 | K35: <30K
B36: 文字链 | C36: 湖北站新闻首页要闻区文字链01 | D36: 不可富媒体售卖 | E36: 天 | F36: 1 | G36: 900 | H36: 工作日不可配送 | K36: ≤10字
B37: 文字链 | C37: 湖北站新闻首页要闻区文字链01（套红） | D37: 不可富媒体售卖 | E37: 天 | F37: 1 | G37: 2600 | H37: 工作日不可配送 | K37: ≤10字
B38: 文字链 | C38: 湖北站新闻首页要闻区文字链02 | D38: 不可富媒体售卖 | E38: 天 | F38: 1 | G38: 900 | H38: 工作日不可配送 | K38: ≤10字
B39: 文字链 | C39: 湖北站新闻首页要闻区文字链02（套红） | D39: 不可富媒体售卖 | E39: 天 | F39: 1 | G39: 2600 | H39: 工作日不可配送 | K39: ≤10字
B40: 流媒体 | C40: 湖北站新闻首页1000*300流媒体 | D40: 可富媒体售卖 | E40: 天 | F40: 1 | G40: 7200 | H40: 全时段可配送 | I40: 1000 | J40: 300 | K40: <50K | L40: 首页流媒体与首页动态全屏互斥
B41: 流媒体 | C41: 湖北站新闻首页1000*300流媒体(小时) | D41: 可富媒体售卖 | E41: 小时 | F41: 1 | G41: 1800 | H41: 全时段可配送 | I41: 1000 | J41: 300 | K41: <50K | L41: 1、刊例价格为每小时的价格； 2、每日9:00-12:59不可售卖 3、首页流媒体与首页动态全屏互斥
B42: 背投 | C42: 湖北站新闻首页750*450背投 | D42: 不可富媒体售卖 | E42: 天 | F42: 1 | G42: 4800 | H42: 全时段可配送 | I42: 750 | J42: 450 | K42: <35K
B43: 动态全屏 | C43: 湖北站新闻首页1000*450动态全屏(小时) | D43: 不可富媒体售卖 | E43: 小时 | F43: 1 | G43: 1200 | H43: 全时段可配送 | I43: 1000 | J43: 450 | K43: <50K | L43: 1、刊例价格为每小时的价格； 2、每日9:00-12:59不可售卖 3、首页流媒体与首页动态全屏互斥
B44: 视窗 | C44: 湖北站新闻首页300*250视窗 | D44: 可富媒体售卖 | E44: 天 | F44: 1 | G44: 4200 | H44: 全时段不可配送 | I44: 300 | J44: 250 | K44: <500K | L44: 1、格式规范必须为:flv 创意类型:<500K 2、15-30秒视频素材，在流媒体、对联、跨栏、前弹、背投之后出现
B45: 焦点图 | C45: 湖北站新闻首页焦点图 | D45: 不可富媒体售卖 | E45: 天 | F45: 1 | G45: 7500 | H45: 全时段不可配送 | L45: 非标广告
A46: 湖北站新闻正文页 | B46: 通栏 | C46: 湖北站新闻正文页顶部1000*90通栏 | D46: 不可富媒体售卖 | E46: 天 | F46: 1 | G46: 8000 | H46: 全时段可配送 | I46: 1000 | J46: 90 | K46: <30K
B47: 画中画 | C47: 湖北站新闻正文页250*220画中画00 | D47: 不可富媒体售卖 | E47: 天 | F47: 1 | G47: 9600 | H47: 全时段可配送 | I47: 250 | J47: 220 | K47: <30K
B48: 画中画 | C48: 湖北站新闻正文页300*220画中画01 | D48: 不可富媒体售卖 | E48: 天 | F48: 1 | G48: 9600 | H48: 全时段可配送 | I48: 300 | J48: 250 | K48: <30K
B49: 画中画 | C49: 湖北站新闻正文页250*220画中画02 | D49: 不可富媒体售卖 | E49: 天 | F49: 1 | G49: 6500 | H49: 全时段可配送 | I49: 250 | J49: 220 | K49: <30K
B50: 文字链 | C50: 湖北站新闻正文页250*220画中画02下文字链01 | D50: 不可富媒体售卖 | E50: 天 | F50: 1 | G50: 600 | H50: 全时段可配送 | K50: ≤9字
B51: 文字链 | C51: 湖北站新闻正文页250*220画中画02下文字链02 | D51: 不可富媒体售卖 | E51: 天 | F51: 1 | G51: 600 | H51: 全时段可配送 | K51: ≤9字
B52: 画中画 | C52: 湖北站新闻正文页250*220画中画03 | D52: 不可富媒体售卖 | E52: 天 | F52: 1 | G52: 5000 | H52: 全时段可配送 | I52: 250 | J52: 220 | K52: <30K
A53: 湖北站新闻列表页 | B53: 通栏 | C53: 湖北新闻列表页顶部1000*90通栏 | D53: 不可富媒体售卖 | E53: 天 | F53: 1 | G53: 1500 | H53: 全时段可配送 | I53: 1000 | J53: 90 | K53: <30K | L53: 新闻列表页通投 （包括：综合、民生、社会、锐评论、一周城事、微视角、随手拍、经济要闻、金融动态、社会视点、微博身边事、微话题、新闻视频、深度报道、视频访谈）
A54: 湖北汽车首页 | B54: 通栏 | C54: 湖北站汽车首页顶部1000*90通栏 | D54: 不可富媒体售卖 | E54: 天 | F54: 1 | G54: 4500 | H54: 工作日不可配送 | I54: 1000 | J54: 90 | K54: <30k
B55: 通栏 | C55: 湖北站汽车首页扩展顶部1000*45通栏 扩展后1000*180 | D55: 不可富媒体售卖 | E55: 天 | F55: 1 | G55: 4500 | H55: 工作日不可配送 | I55: 1000 | J55: 45 | K55: <20K | L55: 扩展后广告尺寸：950*180<30K
B56: 通栏 | C56: 湖北站汽车首页扩展上顶部1000*90通栏 | D56: 不可富媒体售卖 | E56: 天 | F56: 1 | G56: 4050 | H56: 工作日不可配送 | I56: 1000 | J56: 90 | K56: <20K | L56: 扩展后广告尺寸：950*180<30K
B57: 文字链 | C57: 湖北站汽车首页经销商行情下文字链 | D57: 不可富媒体售卖 | E57: 天 | F57: 1 | G57: 800 | H57: 全时段可配送 | K57: ≤8字
B58: 文字链 | C58: 湖北站汽车首页优惠促销下文字链 | D58: 不可富媒体售卖 | E58: 天 | F58: 1 | G58: 800 | H58: 全时段可配送 | K58: ≤8字
B59: 通栏 | C59: 湖北站汽车首页1000*90通栏01 | D59: 不可富媒体售卖 | E59: 天 | F59: 1 | G59: 3000 | H59: 全时段可配送 | I59: 1000 | J59: 90 | K59: <30K
B60: 通栏 | C60: 湖北站汽车首页1000*90通栏02 | D60: 不可富媒体售卖 | E60: 天 | F60: 1 | G60: 2500 | H60: 全时段可配送 | I60: 1000 | J60: 90 | K60: <30K
B61: 通栏 | C61: 湖北站汽车首页1000*90通栏03 | D61: 不可富媒体售卖 | E61: 天 | F61: 1 | G61: 2200 | H61: 全时段可配送 | I61: 1000 | J61: 90 | K61: <30K
B62: 按钮 | C62: 湖北站汽车首页经销商推荐 按钮01 | D62: 不可富媒体售卖 | E62: 天 | F62: 1 | G62: 200 | H62: 全时段可配送 | I62: 118 | J62: 48 | K62: <10K | L62: 非标广告
B63: 按钮 | C63: 湖北站汽车首页经销商推荐 按钮02 | D63: 不可富媒体售卖 | E63: 天 | F63: 1 | G63: 200 | H63: 全时段可配送 | I63: 118 | J63: 48 | K63: <10K | L63: 非标广告
B64: 按钮 | C64: 湖北站汽车首页经销商推荐 按钮03 | D64: 不可富媒体售卖 | E64: 天 | F64: 1 | G64: 200 | H64: 全时段可配送 | I64: 118 | J64: 48 | K64: <10K | L64: 非标广告
B65: 按钮 | C65: 湖北站汽车首页经销商推荐 按钮04 | D65: 不可富媒体售卖 | E65: 天 | F65: 1 | G65: 200 | H65: 全时段可配送 | I65: 118 | J65: 48 | K65: <10K | L65: 非标广告
B66: 按钮 | C66: 湖北站汽车首页经销商推荐 按钮05 | D66: 不可富媒体售卖 | E66: 天 | F66: 1 | G66: 200 | H66: 全时段可配送 | I66: 118 | J66: 48 | K66: <10K | L66: 非标广告
B67: 按钮 | C67: 湖北站汽车首页经销商推荐 按钮06 | D67: 不可富媒体售卖 | E67: 天 | F67: 1 | G67: 200 | H67: 全时段可配送 | I67: 118 | J67: 48 | K67: <10K | L67: 非标广告
B68: 按钮 | C68: 湖北站汽车首页经销商推荐 按钮07 | D68: 不可富媒体售卖 | E68: 天 | F68: 1 | G68: 200 | H68: 全时段可配送 | I68: 118 | J68: 48 | K68: <10K | L68: 非标广告
B69: 焦点图 | C69: 湖北站汽车首页焦点图 | D69: 不可富媒体售卖 | E69: 天 | F69: 1 | G69: 4500 | H69: 全时段不可配送 | I69: 580 | J69: 386 | K69: ≤35K | L69: 非标广告
B70: 视窗 | C70: 湖北站汽车首页300*250视窗 | D70: 可富媒体售卖 | E70: 天 | F70: 1 | G70: 2600 | H70: 全时段不可配送 | I70: 300 | J70: 250 | K70: <500k | L70: 1、格式规范必须为:flv 创意类型:<500K 2、15-30秒视频素材，在流媒体、对联、跨栏、前弹、背投之后出现
B71: 背景广告 | C71: 湖北站汽车首页背景广告 | D71: 不可富媒体售卖 | E71: 天 | F71: 1 | G71: 9000 | H71: 全时段可配送 | I71: 1700 | J71: 508 | K71: <200k | L71: 1、背景广告顶部可投放950*75<30K动态通栏 2、首页背景广告与首页流媒体、首页动态全屏互斥 3、由上渐变到下面为透明色，背景颜色高不得超过508像素
A72: 湖北汽车正文页 | B72: 通栏 | C72: 湖北站汽车正文页顶部950*90通栏 | D72: 不可富媒体售卖 | E72: 天 | F72: 1 | G72: 4500 | H72: 全时段可配送 | I72: 950 | J72: 90 | K72: <30k | L72: 汽车正文页顶部通栏与汽车列表页顶部通栏打通投放
B73: 画中画 | C73: 湖北汽车正文页300*250画中画00 | D73: 不可富媒体售卖 | E73: 天 | F73: 1 | G73: 4000 | H73: 全时段可配送 | I73: 300 | J73: 250 | K73: <30K
B74: 画中画 | C74: 湖北汽车正文页300*250画中画01 | D74: 不可富媒体售卖 | E74: 天 | F74: 1 | G74: 1000 | H74: 全时段可配送 | I74: 300 | J74: 250 | K74: <30K
B75: 按钮 | C75: 湖北汽车正文页右侧300*100按钮01 | D75: 不可富媒体售卖 | E75: 天 | F75: 1 | G75: 2000 | H75: 全时段可配送 | I75: 300 | J75: 100 | K75: <10K
B76: 按钮 | C76: 湖北汽车正文页右侧300*100按钮02 | D76: 不可富媒体售卖 | E76: 天 | F76: 1 | G76: 2000 | H76: 全时段可配送 | I76: 300 | J76: 100 | K76: <10K
B77: 视窗 | C77: 湖北站汽车正文页300*250视窗 | D77: 可富媒体售卖 | E77: 天 | F77: 1 | G77: 4000 | H77: 全时段不可配送 | I77: 300 | J77: 250 | K77: <500K
B78: 通栏 | C78: 湖北站汽车正文页内顶部635*50通栏 | D78: 不可富媒体售卖 | E78: 天 | F78: 1 | G78: 4000 | H78: 全时段可配送 | I78: 635 | J78: 50 | K78: <20k | L78: 1、广告要求为静态图片 2、广告中要有明显的关闭字样及关闭的叉
A79: 湖北旅游首页 | B79: 通栏 | C79: 湖北站旅游首页顶部通栏 | D79: 不可富媒体售卖 | E79: 天 | F79: 1 | G79: 3000 | H79: 全部可配送 | I79: 1000 | J79: 90 | K79: <30K
B80: 全屏 | C80: 湖北站旅游首页动态全屏 | D80: 不可富媒体售卖 | E80: 小时 | F80: 1 | G80: 900 | H80: 全部可配送 | I80: 1000 | J80: 450 | K80: ≤75k
B81: 焦点图 | C81: 湖北站旅游首页焦点图5 | D81: 不可富媒体售卖 | E81: 天 | F81: 1 | G81: 3000 | H81: 全时段不可配送 | I81: 486 | J81: 168 | K81: <200K | L81: 非标广告
B82: 焦点图 | C82: 湖北站旅游首页焦点图6 | D82: 不可富媒体售卖 | E82: 天 | F82: 1 | G82: 1000 | H82: 全时段不可配送 | I82: 240 | J82: 123 | K82: <200K | L82: 非标广告
B83: 焦点图 | C83: 湖北站旅游首页焦点图7 | D83: 不可富媒体售卖 | E83: 天 | F83: 1 | G83: 1000 | H83: 全时段不可配送 | I83: 240 | J83: 123 | K83: <200K | L83: 非标广告
B84: 流媒体 | C84: 湖北站旅游首页流媒体 | D84: 可富媒体售卖 | E84: 天 | F84: 1 | G84: 5000 | H84: 全部可配送 | I84: 1000 | J84: 300 | K84: <75k
B85: 视窗 | C85: 湖北站旅游首页视窗 | D85: 可富媒体售卖 | E85: 天 | F85: 1 | G85: 1800 | H85: 全部可配送 | I85: 300 | J85: 250 | K85: <500K
B86: 通栏 | C86: 湖北站旅游首页通栏01 | D86: 不可富媒体售卖 | E86: 天 | F86: 1 | G86: 1500 | H86: 全部可配送 | I86: 1000 | J86: 90 | K86: <30K | L86: 出境游与主题游版块之间
B87: 通栏 | C87: 湖北站旅游首页两轮播通栏02 | D87: 不可富媒体售卖 | E87: 天 | F87: 2 | G87: 1200 | H87: 全部可配送 | I87: 1000 | J87: 90 | K87: <30K | L87: 新浪航空酒店版块上方，其中一轮播为酒店推荐
B88: 通栏 | C88: 湖北站旅游首页通栏03 | D88: 不可富媒体售卖 | E88: 天 | F88: 1 | G88: 1000 | H88: 全部可配送 | I88: 1000 | J88: 90 | K88: <30K | L88: 享旅游版块下方
A89: 湖北站健康首页 | B89: 通栏 | C89: 湖北站健康首页顶部585*90通栏 | D89: 不可富媒体售卖 | E89: 天 | F89: 1 | G89: 3000 | H89: 全时段可配送 | I89: 585 | J89: 90 | K89: <20k
B90: 翻牌广告 | C90: 湖北站健康首页左侧两轮播160*90翻牌广告 | D90: 不可富媒体售卖 | E90: 天 | F90: 2 | G90: 1000 | H90: 全时段可配送 | I90: 160 | J90: 90 | K90: <10k | L90: 文件格式必须为：jpg
B91: 翻牌广告 | C91: 湖北站健康首页右侧两轮播160*90翻牌广告 | D91: 不可富媒体售卖 | E91: 天 | F91: 2 | G91: 1000 | H91: 全时段可配送 | I91: 160 | J91: 90 | K91: <10k | L91: 文件格式必须为：jpg
B92: 通栏 | C92: 湖北站健康首页扩展顶部950*45通栏 扩展后950*180 | D92: 不可富媒体售卖 | E92: 天 | F92: 1 | G92: 4000 | H92: 全时段不可配送 | I92: 950 | J92: 45 | K92: <20k | L92: 扩展后广告尺寸：950*180<30K
B93: 按钮 | C93: 湖北站健康首页品牌按钮 | D93: 不可富媒体售卖 | E93: 月 | F93: 1 | G93: 45000 | H93: 全时段不可配送 | I93: 95 | J93: 50 | K93: <15k
B94: 按钮 | C94: 湖北站健康首页特色医院按钮 | D94: 不可富媒体售卖 | E94: 月 | F94: 1 | G94: 30000 | H94: 全时段不可配送 | I94: 151 | J94: 100 | K94: <15k | L94: 非标广告 特色医院下面文字字数≤10个字 投放素材需运营确认
B95: 通栏 | C95: 湖北站健康首页950*90通栏01 | D95: 不可富媒体售卖 | E95: 天 | F95: 1 | G95: 1500 | H95: 全时段可配送 | I95: 950 | J95: 90 | K95: <30k
B96: 焦点图 | C96: 湖北站健康首页焦点图 | D96: 不可富媒体售卖 | E96: 天 | F96: 1 | G96: 3000 | H96: 全时段不可配送
A97: 湖北站健康正文页 | B97: 通栏 | C97: 湖北站健康正文页顶部950*90通栏 | D97: 不可富媒体售卖 | E97: 天 | F97: 1 | G97: 3000 | H97: 全时段可配送 | I97: 950 | J97: 90 | K97: <30k
B98: 画中画 | C98: 湖北站健康正文页画中画00 | D98: 不可富媒体售卖 | E98: 天 | F98: 1 | G98: 3000 | H98: 全时段可配送 | I98: 250 | J98: 220 | K98: <30K
B99: 画中画 | C99: 湖北站健康正文页画中画01 | D99: 不可富媒体售卖 | E99: 天 | F99: 1 | G99: 3000 | H99: 全时段可配送 | I99: 300 | J99: 250 | K99: <30K
B100: 画中画 | C100: 湖北站健康正文页画中画02 | D100: 不可富媒体售卖 | E100: 天 | F100: 1 | G100: 2000 | H100: 全时段可配送 | I100: 250 | J100: 220 | K100: <30K
A101: 湖北站视频首页 | B101: 通栏 | C101: 湖北站视频首页顶部950*90通栏 | D101: 不可富媒体售卖 | E101: 天 | F101: 1 | G101: 2000 | H101: 全时段可配送 | I101: 950 | J101: 90 | K101: <30K
B102: 按钮 | C102: 湖北站视频首页按钮 | D102: 不可富媒体售卖 | E102: 天 | F102: 1 | G102: 1500 | H102: 全时段可配送 | I102: 220 | J102: 90 | K102: <20k
B103: 通栏 | C103: 湖北站视频首页950*90通栏01 | D103: 不可富媒体售卖 | E103: 天 | F103: 1 | G103: 1200 | H103: 全时段可配送 | I103: 950 | J103: 90 | K103: <30k
A104: 湖北站视频正文页 | B104: 通栏 | C104: 湖北站视频正文页顶部950*90通栏 | D104: 不可富媒体售卖 | E104: 天 | F104: 1 | G104: 1200 | H104: 全时段可配送 | I104: 950 | J104: 90 | K104: <30k
B105: 画中画 | C105: 湖北站视频正文页画中画00 | D105: 不可富媒体售卖 | E105: 天 | F105: 1 | G105: 1000 | H105: 全时段可配送 | I105: 300 | J105: 250 | K105: <30K
A106: 湖北站读图首页 | B106: 通栏 | C106: 湖北站读图首页顶部950*90通栏 | D106: 不可富媒体售卖 | E106: 天 | F106: 1 | G106: 1500 | H106: 全时段可配送 | I106: 950 | J106: 90 | K106: <30K
B107: 通栏 | C107: 湖北站读图首页950*90通栏01 | D107: 不可富媒体售卖 | E107: 天 | F107: 1 | G107: 1000 | H107: 全时段可配送 | I107: 950 | J107: 90 | K107: <30k
A108: 湖北站城市首页 | B108: 通栏 | C108: 湖北站城市首页顶部950*90通栏 | D108: 不可富媒体售卖 | E108: 天 | F108: 1 | G108: 3000 | H108: 全时段可配送 | I108: 950 | J108: 90 | K108: <30k
A109: 湖北站城市正文页 | B109: 通栏 | C109: 湖北站城市正文页顶部950*90通栏 | D109: 不可富媒体售卖 | E109: 天 | F109: 1 | G109: 3000 | H109: 全时段可配送 | I109: 950 | J109: 90 | K109: <30k
B110: 画中画 | C110: 湖北站城市正文页画中画00 | D110: 不可富媒体售卖 | E110: 天 | F110: 1 | G110: 3000 | H110: 全时段可配送 | I110: 300 | J110: 250 | K110: <30k
B111: 画中画 | C111: 湖北站城市正文页画中画01 | D111: 不可富媒体售卖 | E111: 天 | F111: 1 | G111: 3000 | H111: 全时段可配送 | I111: 300 | J111: 250 | K111: <30k
A112: 新浪首页 | B112: 文字链 | C112: 新浪首页湖北站新闻版块下文字链01 | D112: 不可富媒体售卖 | E112: 天 | F112: 1 | G112: 7000 | H112: 工作日不可配送 | K112: ≤10字
B113: 文字链 | C113: 新浪首页湖北站新闻版块下文字链02 | D113: 不可富媒体售卖 | E113: 天 | F113: 1 | G113: 7000 | H113: 工作日不可配送 | K113: ≤10字
B114: 文字链 | C114: 新浪首页湖北站新闻版块下文字链03 | D114: 不可富媒体售卖 | E114: 天 | F114: 1 | G114: 7000 | H114: 工作日不可配送 | K114: ≤10字
B115: 文字链 | C115: 新浪首页湖北站新闻版块下文字链01(套红） | D115: 不可富媒体售卖 | E115: 天 | F115: 1 | G115: 20000 | H115: 工作日不可配送 | K115: ≤10字
B116: 文字链 | C116: 新浪首页湖北站新闻版块下文字链02(套红） | D116: 不可富媒体售卖 | E116: 天 | F116: 1 | G116: 20000 | H116: 工作日不可配送 | K116: ≤10字
B117: 文字链 | C117: 新浪首页湖北站新闻版块下文字链03(套红） | D117: 不可富媒体售卖 | E117: 天 | F117: 1 | G117: 20000 | H117: 工作日不可配送 | K117: ≤10字
A118: 新浪汽车首页 | B118: 按钮 | C118: 新浪汽车首页车讯版湖北定向右侧240*100按钮01 | D118: 不可富媒体售卖 | E118: 天 | F118: 1 | G118: 4000 | H118: 全时段不可配送 | I118: 240 | J118: 100 | K118: <20K
B119: 按钮 | C119: 新浪汽车首页车讯版湖北定向右侧240*100按钮02 | D119: 不可富媒体售卖 | E119: 天 | F119: 1 | G119: 4000 | H119: 全时段不可配送 | I119: 240 | J119: 100 | K119: <20K
B120: 按钮 | C120: 新浪汽车首页车讯版湖北定向右侧240*100按钮03 | D120: 不可富媒体售卖 | E120: 天 | F120: 1 | G120: 4000 | H120: 全时段不可配送 | I120: 240 | J120: 100 | K120: <20K
B121: 按钮 | C121: 新浪汽车首页车讯版湖北定向右侧240*100按钮04 | D121: 不可富媒体售卖 | E121: 天 | F121: 1 | G121: 4000 | H121: 全时段不可配送 | I121: 240 | J121: 100 | K121: <20K
B122: 按钮 | C122: 新浪汽车首页车讯版湖北定向顶部360*90按钮01 | D122: 不可富媒体售卖 | E122: 天 | F122: 1 | G122: 5200 | H122: 全时段不可配送 | I122: 360 | J122: 90 | K122: <25K
B123: 按钮 | C123: 新浪汽车首页车讯版湖北定向顶部620*90按钮02 | D123: 不可富媒体售卖 | E123: 天 | F123: 1 | G123: 10400 | H123: 全时段不可配送 | I123: 620 | J123: 90 | K123: <40K
B124: 按钮 | C124: 新浪汽车首页车讯版湖北定向底部320*90按钮01 | D124: 不可富媒体售卖 | E124: 天 | F124: 1 | G124: 2800 | H124: 全时段不可配送 | I124: 320 | J124: 90 | K124: <25K
B125: 按钮 | C125: 新浪汽车首页车讯版湖北定向底部320*90按钮02 | D125: 不可富媒体售卖 | E125: 天 | F125: 1 | G125: 2800 | H125: 全时段不可配送 | I125: 320 | J125: 90 | K125: <25K
B126: 按钮 | C126: 新浪汽车首页车讯版湖北定向底部320*90按钮03 | D126: 不可富媒体售卖 | E126: 天 | F126: 1 | G126: 2800 | H126: 全时段不可配送 | I126: 320 | J126: 90 | K126: <25K
B127: 按钮 | C127: 新浪汽车首页车讯版湖北定向经销商推荐按钮01 | D127: 不可富媒体售卖 | E127: 天 | F127: 1 | G127: 2800 | H127: 全时段不可配送 | L127: 非标资源
B128: 按钮 | C128: 新浪汽车首页车讯版湖北定向经销商推荐按钮02 | D128: 不可富媒体售卖 | E128: 天 | F128: 1 | G128: 2800 | H128: 全时段不可配送 | L128: 非标资源
B129: 按钮 | C129: 新浪汽车首页车讯版湖北定向经销商推荐按钮03 | D129: 不可富媒体售卖 | E129: 天 | F129: 1 | G129: 2800 | H129: 全时段不可配送 | L129: 非标资源
B130: 按钮 | C130: 新浪汽车首页车讯版湖北定向经销商推荐按钮04 | D130: 不可富媒体售卖 | E130: 天 | F130: 1 | G130: 2800 | H130: 全时段不可配送 | L130: 非标资源
B131: 按钮 | C131: 新浪汽车首页车讯版湖北定向经销商推荐按钮05 | D131: 不可富媒体售卖 | E131: 天 | F131: 1 | G131: 2800 | H131: 全时段不可配送 | L131: 非标资源
B132: 按钮 | C132: 新浪汽车首页车讯版湖北定向经销商推荐按钮06 | D132: 不可富媒体售卖 | E132: 天 | F132: 1 | G132: 2800 | H132: 全时段不可配送 | L132: 非标资源
B133: 按钮 | C133: 新浪汽车首页车讯版湖北定向经销商推荐按钮07 | D133: 不可富媒体售卖 | E133: 天 | F133: 1 | G133: 2800 | H133: 全时段不可配送 | L133: 非标资源
B134: 按钮 | C134: 新浪汽车首页车讯版湖北定向经销商推荐按钮08 | D134: 不可富媒体售卖 | E134: 天 | F134: 1 | G134: 2800 | H134: 全时段不可配送 | L134: 非标资源
B135: 按钮 | C135: 新浪汽车首页车讯版湖北定向经销商推荐按钮09 | D135: 不可富媒体售卖 | E135: 天 | F135: 1 | G135: 2800 | H135: 全时段不可配送 | L135: 非标资源
B136: 按钮 | C136: 新浪汽车首页车讯版湖北定向经销商推荐按钮10 | D136: 不可富媒体售卖 | E136: 天 | F136: 1 | G136: 2800 | H136: 全时段不可配送 | L136: 非标资源

Sheet 湖北wap站
A2: 页面 | B2: 产品类型 | C2: 产品名称 | D2: 刊例价 | E2: 配送属性 | F2: 规格尺寸 | G2: 备注
A3: 湖北wap首页 | B3: 焦点图 | C3: 湖北wap首页焦点图 | D3: 8000 | E3: 工作日不可配送 | F3: 640*320，jpg/png，<20K 点链落地页必须是手机页面 标题：13-15个字
B4: 文字链 | C4: 湖北wap首页文字链01 | D4: 2000 | E4: 工作日不可配送 | F4: 10-13.5个字符
B5: 流媒体 | C5: 湖北wap首页流媒体 | D5: 14000 | E5: 工作日不可配送 | F5: 320*180、 png 、小于等于20k
B6: 全屏 | C6: 湖北wap首页全屏 | D6: 10000 | E6: 工作日不可配送 | F6: 320*180、 png 、小于等于20k
B7: 信息流广告 | C7: 湖北wap首页信息流（第3条） | D7: =D3/2 -> 4000 | E7: 全时段可配送 | F7: 80*60，标题：13.5字，摘要：16字
B8: 信息流广告 | C8: 湖北wap首页信息流（第7条） | D8: =D7*0.8 -> 3200 | E8: 全时段可配送 | F8: 80*60，标题：13.5字，摘要：16字
B9: 信息流广告 | C9: 湖北wap首页信息流（第15条） | D9: =D7*0.6 -> 2400 | E9: 全时段可配送 | F9: 80*60，标题：13.5字，摘要：16字
B10: 信息流广告 | C10: 湖北wap首页信息流（第19条） | D10: =D7*0.55 -> 2200 | E10: 全时段可配送 | F10: 80*60，标题：13.5字，摘要：16字
B11: 信息流广告 | C11: 湖北wap首页信息流（第21条） | D11: =D7*0.5 -> 2000 | E11: 全时段可配送 | F11: 80*60，标题：13.5字，摘要：16字
A12: 湖北wap资讯首页 | B12: 通栏 | C12: 湖北wap资讯首页顶部通栏 | D12: 1500 | E12: 工作日不可配送 | F12: 640*100，jpg，<8K
B13: 信息流广告 | C13: 湖北wap资讯首页信息流（第3条） | D13: =D12 -> 1500 | E13: 全时段可配送 | F13: 80*60，标题：13.5字，摘要：16字
B14: 信息流广告 | C14: 湖北wap资讯首页信息流（第7条） | D14: =D12*0.8 -> 1200 | E14: 全时段可配送 | F14: 80*60，标题：13.5字，摘要：16字
B15: 信息流广告 | C15: 湖北wap资讯首页信息流（第12条） | D15: =D14*0.8 -> 960 | E15: 全时段可配送 | F15: 80*60，标题：13.5字，摘要：16字
B16: 信息流广告 | C16: 湖北wap资讯首页信息流（第17条） | D16: =D14*0.6 -> 720 | E16: 全时段可配送 | F16: 80*60，标题：13.5字，摘要：16字
B17: 信息流广告 | C17: 湖北wap资讯首页信息流（第21条） | D17: =D14*0.55 -> 660 | E17: 全时段可配送 | F17: 80*60，标题：13.5字，摘要：16字
A18: 湖北wap正文页 | B18: 通栏 | C18: 湖北wap正文页顶部通栏 | D18: =D3 -> 8000 | E18: 工作日不可配送 | F18: 640*120，jpg，<8K
B19: 信息流广告 | C19: 湖北wap正文页相关阅读板块信息流（第2条） | D19: 2600 | E19: 全时段可配送 | F19: 80*60，标题：13.5字，摘要：16字
B20: 信息流广告 | C20: 湖北wap正文页相关阅读板块信息流（第5条） | D20: 2200 | E20: 全时段可配送 | F20: 80*60，标题：13.5字，摘要：16字
B21: 信息流广告 | C21: 湖北wap正文页相关阅读板块信息流（第10条） | D21: 1550 | E21: 全时段可配送 | F21: 80*60，标题：13.5字，摘要：16字
B22: 信息流广告 | C22: 湖北wap正文页相关阅读板块信息流（第13条） | D22: 1400 | E22: 全时段可配送 | F22: 80*60，标题：13.5字，摘要：16字
B23: 信息流广告 | C23: 湖北wap正文页相关阅读板块信息流（第16条） | D23: =D19*0.5 -> 1300 | E23: 全时段可配送 | F23: 80*60，标题：13.5字，摘要：16字
B24: 信息流广告 | C24: 天津wap正文页相关阅读板块信息流（第19条） | D24: 1200 | E24: 全时段可配送 | F24: 80*60，标题：13.5字，摘要：16字

Sheet 湖北APP首页
A1: 地方站 | B1: 页面 | C1: 产品类型 | D1: 产品名称 | E1: 刊例价 | F1: 配送属性 | G1: 规格尺寸 | H1: 备注
A2: 湖北站 | B2: 湖北APP首页 | C2: 焦点图 | D2: 湖北APP首页焦点图 | E2: 4000 | F2: 工作日不可配送 | G2: 640*320，jpg/png，<20K 点链落地页必须是手机页面 标题：13-15个字
C3: 信息流广告 | D3: 品牌信息流（第三条） | E3: 4400 | F3: 全时段不可配 | H3: 非标
C4: 信息流广告 | D4: 原生信息流（第三条） | E4: 4000 | F4: 全时段不可配 | H4: 非标
C5: 信息流广告 | D5: 品牌信息流（第九条） | E5: 2200 | F5: 全时段不可配 | H5: 非标
C6: 信息流广告 | D6: 原生信息流（第九条） | E6: 2000 | F6: 全时段不可配 | H6: 非标

Sheet 湖北汽车wap站
A1: 地方站 | B1: 页面 | C1: 产品类型 | D1: 产品名称 | E1: 刊例价 | F1: 配送属性 | G1: 规格尺寸 | H1: 备注
A2: 湖北站 | B2: 湖北汽车wap首页 | C2: 通栏 | D2: 湖北汽车wap首页顶部通栏 | E2: 1500 | F2: 工作日不可配送 | G2: 640*100
C3: 焦点图 | D3: 湖北汽车wap首页焦点图（第三帧） | E3: =E2*3 -> 4500 | F3: 工作日不可配送 | G3: 640*320
C4: 全屏 | D4: 湖北汽车wap首页全屏 | E4: =E3/0.8 -> 5625 | F4: 工作日不可配送 | G4: 320*180
C5: 文字链 | D5: 湖北汽车wap首页文字链01 | E5: =E3/4 -> 1125 | F5: 全时段可配送 | G5: 12-15个字
C6: 通栏 | D6: 湖北汽车wap首页通栏01 | E6: =E2*0.7 -> 1050 | F6: 全时段可配送 | G6: 640*150
C7: 通栏 | D7: 湖北汽车wap首页浮窗01（底部） | E7: =E2*1.5 -> 2250 | F7: 全时段可配送 | G7: 640*80
C8: 信息流广告 | D8: 湖北汽车wap首页信息流（第三条） | E8: 1000 | F8: 全时段不可配送
C9: 信息流广告 | D9: 湖北汽车wap首页信息流（第九条） | E9: =E8*0.8 -> 800 | F9: 全时段不可配送
C10: 信息流广告 | D10: 湖北汽车wap首页信息流（第十五条） | E10: =E8*0.6 -> 600 | F10: 全时段不可配送
C11: 信息流广告 | D11: 湖北汽车wap首页信息流（第二十条） | E11: =E8*0.5 -> 500 | F11: 全时段不可配送
